[Event "CCC-GM 2022"]
[Site "Ballerup"]
[Date "2022.05.28"]
[Round "7.4"]
[White "Haubro, Martin"]
[Black "Komarov, Dimitri"]
[Result "0-1"]
[ECO "B33"]
[WhiteElo "2428"]
[BlackElo "2493"]
[Annotator "TA"]
[PlyCount "102"]
[EventDate "2022.05.25"]
[EventType "tourn"]
[EventCountry "DEN"]
[SourceTitle "playchess.com"]
[Source "ChessBase"]
[SourceQuality "1"]
[TimeControl "5400+30"]

{[%evp 15,102,38,42,39,42,38,47,43,35,29,45,45,43,43,53,64,63,57,69,68,59,59,88,72,76,56,58,17,42,18,45,35,81,83,72,53,58,54,45,26,31,18,27,10,27,22,19,18,18,18,18,18,22,18,24,19,39,0,29,0,18,0,0,0,0,-104,-104,-104,-91,-91,-91,-106,-93,-100,-101,-1294,-1249,-1776,-1776,-1113,-131,-212,-5025,-29978,-29979,-29979,-29980,-29975,-6135]} 1. e4 {[%emt 0:00:03]} c5 {[%emt 0:00:03]} 2. Nf3 {[%emt 0:00:07]} Nc6 {[%emt 0:00:05]} 3. d4 {[%emt 0:00:03]} cxd4 {[%emt 0:00:09]} 4. Nxd4 {[%emt 0:00:03]} Nf6 {[%emt 0:00:23]} 5. Nc3 {[%emt 0:00:05]} g6 {[%emt 0:00:06]} 6. Nxc6 {[%emt 0:01:36]} dxc6 {[%emt 0:00:05]} 7. Qxd8+ {[%emt 0:02:36]} Kxd8 {[%emt 0:00:09]} 8. Bc4 {[%emt 0:03:03]} Ke8 {[%emt 0:00:17]} 9. e5 {[%emt 0:08:35] B34: Sicilian: Accelerated Dragon with 5 Nc3: sidelines.} Nd7 {[%emt 0:00:20]} 10. e6 {[%emt 0:02:04]} fxe6 {[%emt 0:00:11]} 11. Bxe6 {[%emt 0:00:05] White is slightly better.} Bg7 {[%emt 0:06:30]} 12. Ne4 {[%emt 0:12:56]} Nf8 {[%emt 0:08:25] [#]} 13. Bxc8 $146 {[%emt 0:07:47]} ({Predecessor:} 13. Bb3 Be6 14. c3 Bd5 15. f3 Ne6 16. O-O Rf8 17. Re1 b6 18. Bg5 Kf7 19. Bh4 {1-0 (31) Maxion,D (2245)-Wiedersich,J (2150) Germany 1999}) 13... Rxc8 {[%emt 0:00:06]} 14. Be3 {[%emt 0:00:34]} Ne6 {[%emt 0:13:37]} 15. c3 {[%emt 0:17:22]} b6 {[%emt 0:05:45]} 16. a4 {[%emt 0:00:42]} Rf8 {[%emt 0:00:59]} 17. a5 {[%emt 0:01:34]} Rf5 {[%emt 0:02:33]} 18. Kd2 {[%emt 0:05:55]} bxa5 {[%emt 0:07:22]} 19. Kc2 {[%emt 0:03:37]} Rb5 {[%emt 0:06:03]} 20. Ra2 {[%emt 0:04:10][%mdl 1024] White has strong compensation.} Be5 {[%emt 0:02:54]} 21. Re1 {[%emt 0:23:43]} Bc7 {[%emt 0:14:56]} ({Much less strong is} 21... Bxh2 22. g3 $16) 22. Nd2 {[%emt 0:00:32]} a6 {[%emt 0:03:33]} 23. Ra4 {[%emt 0:01:01]} Kf7 {[%emt 0:05:46]} (23... Bxh2 $2 24. g3 $18) (23... Rcb8 $14 {was preferrable.}) 24. Re4 $16 {[%emt 0:00:20] Hoping for Bh6.} Re8 {[%emt 0:03:28]} (24... Bxh2 $2 25. g3 $18 (25. Bh6 Rh5 $18)) 25. Nf3 {[%emt 0:01:47] Threatens to win with Bh6.} Bd6 $1 {[%emt 0:04:09]} 26. Bc1 {[%emt 0:01:40]} Nc5 {[%emt 0:04:00]} 27. Rc4 {[%emt 0:00:49]} Reb8 {[%emt 0:05:51]} 28. Ng5+ {[%emt 0:00:30]} Kg8 {[%emt 0:00:16]} 29. Ne4 {[%emt 0:00:32]} Nxe4 {[%emt 0:00:29]} (29... Kf7 {keeps more tension.} 30. h3 Nxe4 31. Rexe4 Rf5) 30. Rexe4 {[%emt 0:00:05]} Rf5 {[%emt 0:01:15]} 31. f3 {[%emt 0:00:40]} Rc8 {[%emt 0:00:53]} 32. h3 {[%emt 0:00:04]} Kf7 {[%emt 0:00:21]} 33. Ra4 {[%emt 0:00:26]} Ke8 {[%emt 0:01:43]} 34. Bd2 {[%emt 0:01:07]} Rb8 {[%emt 0:00:12]} 35. Ra2 {[%emt 0:00:38]} Kd7 {[%emt 0:00:36]} 36. Rea4 {[%emt 0:00:35]} Bc7 {[%emt 0:00:48]} 37. Re4 {[%emt 0:00:42]} Rbb5 {[%emt 0:00:47]} 38. Ra1 {[%emt 0:00:37]} Rbe5 {[%emt 0:00:55]} 39. Rxe5 {[%emt 0:00:09]} Rxe5 {[%emt 0:00:07]} 40. Re1 {[%emt 0:00:42] Against Re2} (40. Kd3 $11 {keeps the balance.}) 40... Rxe1 $17 {[%emt 0:00:07]} 41. Bxe1 {[%emt 0:00:04][%mdl 4096] Endgame KB-KB} a4 {[%emt 0:00:42]} 42. Bd2 {[%emt 0:01:12]} Ke6 {[%emt 0:00:17]} 43. c4 {[%emt 0:00:19]} Be5 {[%emt 0:01:16]} 44. Bb4 {[%emt 0:00:36]} Bd6 {[%emt 0:00:16]} 45. Bxd6 {[%emt 0:00:26][%mdl 8192] [#] This move loses the game for White.} (45. Bd2 $17) 45... Kxd6 {[%emt 0:01:28] KP-KP} 46. Kd3 {[%emt 0:00:35]} Kc5 {[%emt 0:00:15]} 47. Kc3 {[%emt 0:00:20]} e5 $2 {[%emt 0:00:25]} (47... g5 $19 48. Kc2 Kxc4) 48. g3 {[%emt 0:00:24]} (48. h4 $17 a5 49. g3) 48... g5 $2 {[%emt 0:00:39]} (48... h5 49. h4 a5) 49. h4 {[%emt 0:00:41]} gxh4 {[%emt 0:00:16] Black mates.} 50. gxh4 {[%emt 0:00:05]} h5 {[%emt 0:00:28]} 51. Kd3 {[%emt 0:00:08] [#]} Kb4 $1 {[%emt 0:00:26] Weighted Error Value: White=0.56/Black=0.23 (precise)} 0-1

[Event "CCC-GM 2022"]
[Site "Ballerup"]
[Date "2022.05.28"]
[Round "7.5"]
[White "Heimisson, Hilmir Freyr"]
[Black "Brondt, Nicolai Kvist"]
[Result "0-1"]
[ECO "A15"]
[WhiteElo "2323"]
[BlackElo "2241"]
[Annotator "TA"]
[PlyCount "68"]
[EventDate "2022.05.25"]
[EventType "tourn"]
[EventCountry "DEN"]
[SourceTitle "playchess.com"]
[Source "ChessBase"]
[SourceQuality "1"]
[TimeControl "5400+30"]

{[%evp 20,68,14,4,38,26,39,50,56,44,55,18,28,12,20,16,5,10,27,25,37,37,108,105,118,116,127,128,162,115,120,110,116,109,129,112,119,-172,-172,-179,0,-205,-205,-621,-614,-604,-568,-595,-531,-531,-511]} 1. c4 {[%emt 0:00:11]} Nf6 {[%emt 0:01:47]} 2. g3 {[%emt 0:00:17]} c5 {[%emt 0:00:25]} 3. Bg2 {[%emt 0:00:19]} e6 {[%emt 0:00:25]} 4. Nf3 {[%emt 0:00:15]} d5 {[%emt 0:04:20]} 5. O-O {[%emt 0:00:27]} Be7 {[%emt 0:02:06]} 6. cxd5 {[%emt 0:00:30]} Nxd5 {[%emt 0:01:00]} 7. Nc3 {[%emt 0:01:10]} O-O {[%emt 0:01:18]} 8. Nxd5 {[%emt 0:06:12]} exd5 {[%emt 0:01:46]} 9. d4 {[%emt 0:00:16]} Nc6 {[%emt 0:00:18]} 10. dxc5 {[%emt 0:01:56]} Bxc5 {[%emt 0:00:22]} 11. Qc2 {[%emt 0:00:19]} Be7 {[%emt 0:07:31] D41: Queen's Gambit Declined: Semi-Tarrasch with 5 cxd5.} 12. Rd1 {[%emt 0:11:57]} Bf6 {[%emt 0:04:42]} 13. Be3 {[%emt 0:16:16]} Be6 {[%emt 0:22:13] White is slightly better.} 14. Nd4 {[%emt 0:03:05]} Qd7 {[%emt 0:06:01] [#]} 15. Qd2 $146 {[%emt 0:05:32]} (15. Nxc6 {with more complications.} Rfc8 16. Bd4 Rxc6 17. Qd2) ({Predecessor:} 15. Rd2 Rac8 16. Nxc6 Rxc6 17. Qd1 Rd8 18. Bd4 Bxd4 19. Rxd4 Rc4 20. b3 Rxd4 21. Qxd4 {½-½ (46) Kenney,J (2112)-Rindlisbacher,J (2249) Caleta 2014}) 15... Bg4 {[%emt 0:01:32]} 16. Nxc6 {[%emt 0:06:25]} bxc6 {[%emt 0:00:35]} 17. Rac1 {[%emt 0:00:08]} Rfe8 {[%emt 0:04:22]} 18. Qc2 {[%emt 0:01:25]} Rac8 {[%emt 0:01:16]} 19. Rd2 {[%emt 0:02:05]} d4 {[%emt 0:14:01] And now ...c5 would win.} 20. Qc5 {[%emt 0:16:43][%cal Re3d4]} Bxe2 {[%emt 0:16:37]} 21. Bxd4 $16 {[%emt 0:02:14]} ({But not} 21. Rxe2 dxe3 22. Rxe3 Rxe3 23. Qxe3 Bxb2 $11) (21. Bxc6 $2 Qg4 22. Bxd4 Bf3 23. Bxf3 (23. Bxe8 Rxc5 24. Rxc5 Qh3 25. Bxf7+ Kxf7 26. Rc7+ Kg6) 23... Rxc5 24. Bxg4 Rxc1+ 25. Kg2 Rd8 $19) 21... Bxd4 {[%emt 0:00:55]} 22. Rxd4 {[%emt 0:00:58]} Qe6 {[%emt 0:02:33]} 23. b3 {[%emt 0:01:11]} ({Worse is} 23. Bxc6 Bf3 24. Bxf3 Rxc5 25. Rxc5 Qxa2 $15) 23... Qf6 {[%emt 0:00:54]} 24. Rd6 {[%emt 0:05:37]} ({Not} 24. Bxc6 $2 Re6 25. b4 g5 $19) (24. Qxa7 $18 c5 25. Rd2) 24... Qb2 {[%emt 0:01:18]} 25. Rxc6 {[%emt 0:00:37]} Rxc6 {[%emt 0:00:58]} 26. Bxc6 {[%emt 0:01:16]} Rc8 {[%emt 0:01:19][%cal Oe2b5]} 27. Qc2 $40 {[%emt 0:11:53][%mdl 128] White wants a kill.} Qa3 {[%emt 0:00:51]} 28. Qd2 $2 {[%emt 0:04:26][%mdl 8192] [#]} (28. Re1 $16 {keeps the pressure on.} Bg4 29. Qd2 $1) 28... Bb5 $19 {[%emt 0:01:05][%mdl 576] Pin} 29. b4 {[%emt 0:00:31][%cal Oc1d1]} (29. Bxb5 Qxc1+) 29... g6 $2 {[%emt 0:01:33]} ({Black should play} 29... h5 $19 30. Rc3 Qxb4) 30. Rc3 {[%emt 0:00:46]} (30. Qe1 $1 $11) 30... Qxb4 {[%emt 0:00:23]} 31. Qc2 $2 {[%emt 0:00:24]} (31. Qc1) 31... Rxc6 {[%emt 0:00:46] Black is clearly winning.} 32. Rxc6 {[%emt 0:00:13] Hoping for Qc3.} Qe1+ {[%emt 0:00:25]} 33. Kg2 {[%emt 0:00:03] aiming for Rc8+.} Qf1+ {[%emt 0:00:22]} 34. Kf3 {[%emt 0:00:02] Strongly threatening Rc8+.} Qh1+ {[%emt 0:00:32] Weighted Error Value: White=0.68/Black=0.19 (very precise)} 0-1

[Event "CCC-GM 2022"]
[Site "Ballerup"]
[Date "2022.05.29"]
[Round "8.1"]
[White "Brunello, Sabino"]
[Black "Brondt, Nicolai Kvist"]
[Result "1/2-1/2"]
[ECO "D11"]
[WhiteElo "2521"]
[BlackElo "2241"]
[Annotator "TA"]
[PlyCount "122"]
[EventDate "2022.05.25"]
[EventType "tourn"]
[EventCountry "DEN"]
[SourceTitle "playchess.com"]
[Source "ChessBase"]
[SourceQuality "1"]
[TimeControl "5400+30"]

{[%evp 9,122,32,35,28,41,18,30,-28,-15,-12,6,3,30,18,34,32,36,23,23,14,29,20,20,0,0,-9,-3,-5,0,0,0,0,0,0,0,-8,-13,-50,-44,-91,-85,-107,-107,-108,-86,-84,-81,-107,-68,-92,-24,-25,-31,-31,-31,-38,-39,-30,-34,-94,-84,-87,-77,-119,-99,-100,-97,-81,-74,-132,-133,-131,-131,-241,-150,-139,-125,-243,-249,-256,-247,-446,-219,-393,-393,-393,-235,-256,-191,-386,-386,-375,-338,-276,-402,-255,-67,-67,-8,-8,-8,-8,-8,-8,-8,-8,-8,-8,-8,-8,-8,-8,-8,-8,-8]} 1. d4 {[%emt 0:00:02]} Nf6 {[%emt 0:06:18]} 2. c4 {[%emt 0:00:11]} c6 {[%emt 0:00:01]} 3. Nf3 {[%emt 0:00:38]} d5 {[%emt 0:00:06]} 4. e3 {[%emt 0:00:04]} a6 {[%emt 0:00:08]} 5. Nbd2 {[%emt 0:07:48]} Bf5 {[%emt 0:06:30]} 6. Nh4 {[%emt 0:03:49] D11: Slav Defence: 3 Nf3 sidelines and 3...Nf6 4 e3 Bg4.} Be4 {[%emt 0:01:04]} 7. Nxe4 {[%emt 0:14:53]} Nxe4 {[%emt 0:06:06] [#]} 8. f3 $146 {[%emt 0:11:01] [#]} (8. Nf3 $142) ({Predecessor:} 8. a3 e6 9. Nf3 Bd6 10. Bd3 f5 11. Qc2 Nd7 12. b3 O-O 13. Bb2 Qf6 14. g3 {0-1 (32) Borsuk,K (2413)-Le,T (2514) Chess.com INT 2021}) 8... e6 $1 {[%emt 0:13:35]} 9. g3 {[%emt 0:01:13]} Nf6 {[%emt 0:05:24]} (9... Qa5+ {keeps more tension.} 10. Ke2 Nf6 11. Bd2 Bb4) 10. Qb3 {[%emt 0:07:41]} b5 {[%emt 0:26:39]} 11. cxd5 {[%emt 0:03:49]} Qxd5 {[%emt 0:01:49]} 12. Qxd5 {[%emt 0:11:47]} Nxd5 {[%emt 0:00:05]} 13. Bd2 {[%emt 0:03:31]} c5 {[%emt 0:02:57]} 14. dxc5 {[%emt 0:09:53]} Bxc5 {[%emt 0:01:01]} 15. Rc1 {[%emt 0:00:02]} Nd7 {[%emt 0:01:05]} 16. Kf2 {[%emt 0:08:40]} Ke7 {[%emt 0:01:49]} 17. Be2 {[%emt 0:00:27]} Rhc8 {[%emt 0:03:49]} 18. Ng2 {[%emt 0:00:27]} N7b6 {[%emt 0:02:36]} 19. Rhd1 {[%emt 0:08:12][%cal Oc1c5]} Bb4 {[%emt 0:03:19]} 20. Bxb4+ {[%emt 0:00:27]} Nxb4 {[%emt 0:02:35]} 21. a3 {[%emt 0:00:04]} Nc6 {[%emt 0:00:50][%cal Bb4c6,Bc6a5,Ba5c4,Bc4b2][%mdl 32]} 22. Ne1 {[%emt 0:06:08]} Na5 {[%emt 0:01:41]} 23. b4 {[%emt 0:00:07]} Nac4 {[%emt 0:01:38]} 24. Nc2 {[%emt 0:01:00]} (24. Ra1 $15) 24... Nb2 $17 {[%emt 0:03:27] Pair of Knights!} 25. Rh1 {[%emt 0:00:16]} Rc3 $1 {[%emt 0:01:42]} 26. Nd4 {[%emt 0:00:27]} Rac8 {[%emt 0:00:33]} 27. Rxc3 {[%emt 0:00:19]} Rxc3 {[%emt 0:00:02]} 28. Ra1 {[%emt 0:00:04]} N6c4 {[%emt 0:02:24]} 29. Bxc4 {[%emt 0:00:14]} Nxc4 $15 {[%emt 0:00:40][%mdl 4096] Endgame KRN-KRN} (29... bxc4 $17 30. f4 Kd7) 30. a4 $11 {[%emt 0:00:26]} Rxe3 {[%emt 0:01:23]} 31. axb5 {[%emt 0:00:30]} axb5 {[%emt 0:00:02]} 32. Nxb5 {[%emt 0:00:15]} Rb3 {[%emt 0:00:34]} 33. Nd4 {[%emt 0:01:27]} ({Of course not} 33. Ra7+ Kf6 34. Nd4 Rxb4 $17) 33... Rb2+ {[%emt 0:00:32]} 34. Ne2 {[%emt 0:00:59]} (34. Kg1 $15) 34... Rxb4 {[%emt 0:00:31]} 35. Ra7+ {[%emt 0:00:35]} Kf6 {[%emt 0:00:19]} 36. Rc7 {[%emt 0:00:30]} Nd6 {[%emt 0:00:30]} 37. Rd7 {[%emt 0:00:22]} Nf5 {[%emt 0:01:07]} 38. g4 {[%emt 0:00:35] [#]} Nh4 {[%emt 0:00:42]} 39. f4 {[%emt 0:00:33]} (39. Nc3 $142) 39... h6 $17 {[%emt 0:00:59]} 40. Rd3 {[%emt 0:00:32]} g5 {[%emt 0:00:32]} 41. Kg3 {[%emt 0:00:03]} (41. fxg5+ $17 hxg5 42. h3) 41... Ng6 {[%emt 0:00:51][%cal Rg5f4]} 42. fxg5+ {[%emt 0:00:29]} hxg5 {[%emt 0:00:02][%cal Ob4g4] And now ...Rxg4+! would win.} 43. h3 {[%emt 0:00:14] [#]} (43. Rc3 $17) 43... Nf4 $1 $19 {[%emt 0:01:08]} 44. Rf3 {[%emt 0:01:15][%cal Re2f4]} Ke5 {[%emt 0:00:32]} 45. Re3+ {[%emt 0:00:26]} (45. Nc1) 45... Kd5 {[%emt 0:01:17]} (45... Re4 $142 46. Rxe4+ Kxe4) 46. Ng1 $2 {[%emt 0:00:33]} (46. Nc3+ {was worth a try.} Kd4 47. Kf3) 46... Rb2 {[%emt 0:00:39]} 47. Re1 {[%emt 0:00:27]} Rg2+ {[%emt 0:00:59]} 48. Kf3 {[%emt 0:00:01]} Rd2 {[%emt 0:00:54] Inhibits Rd1. Threatens to win with ...e5.} 49. Re3 $2 {[%emt 0:00:54]} (49. Ra1 {might work better.}) 49... e5 {[%emt 0:00:26]} 50. Ra3 {[%emt 0:00:09]} e4+ {[%emt 0:00:47]} 51. Ke3 {[%emt 0:00:14]} Rd3+ {[%emt 0:00:13]} (51... Rd1 $142 52. Ra5+ Kd6 53. Rxg5 Ne6) 52. Rxd3+ {[%emt 0:00:01]} exd3 $2 {[%emt 0:00:23] KN-KN} (52... Nxd3 $19 53. Nf3 f6) 53. Nf3 $15 {[%emt 0:00:38]} f6 {[%emt 0:00:53]} ({Better is} 53... Nxh3 $15 54. Kxd3 Nf2+ 55. Ke2 Nh3) 54. h4 $1 $11 {[%emt 0:00:15] The position is equal.} Ng2+ {[%emt 0:00:30]} 55. Kxd3 {[%emt 0:00:06]} gxh4 {[%emt 0:00:44]} 56. g5 {[%emt 0:00:49]} f5 {[%emt 0:00:36]} 57. Ke2 {[%emt 0:00:20]} Ke4 {[%emt 0:00:23] White must now prevent ...Nf4+.} 58. Kf2 {[%emt 0:00:19]} Nf4 {[%emt 0:00:34] aiming for ...Ng6.} 59. Nxh4 {[%emt 0:00:08]} Nh3+ {[%emt 0:00:10]} 60. Kg3 {[%emt 0:00:07]} Nxg5 {[%emt 0:00:05]} 61. Nxf5 {[%emt 0:00:02]} Kxf5 {[%emt 0:00:03] White happily takes the draw.  Weighted Error Value: White=0.24 (precise) /Black=0.24 (precise)} 1/2-1/2

[Event "CCC-GM 2022"]
[Site "Ballerup"]
[Date "2022.05.29"]
[Round "8.2"]
[White "Komarov, Dimitri"]
[Black "Heimisson, Hilmir Freyr"]
[Result "1/2-1/2"]
[ECO "E06"]
[WhiteElo "2493"]
[BlackElo "2323"]
[Annotator "TA"]
[PlyCount "60"]
[EventDate "2022.05.25"]
[EventType "tourn"]
[EventCountry "DEN"]
[SourceTitle "playchess.com"]
[Source "ChessBase"]
[SourceQuality "1"]
[TimeControl "5400+30"]

{[%evp 18,60,24,22,14,0,0,0,0,0,13,0,0,0,0,0,19,0,0,0,0,0,0,-29,-35,-33,-12,-18,-13,-12,-14,-7,-18,-11,-4,-16,-6,-31,0,-13,-6,-12,0,-7,0]} 1. d4 {[%emt 0:00:02]} Nf6 {[%emt 0:00:13]} 2. c4 {[%emt 0:00:07]} e6 {[%emt 0:00:04]} 3. Nf3 {[%emt 0:00:06]} d5 {[%emt 0:00:21]} 4. g3 {[%emt 0:00:03]} Be7 {[%emt 0:00:07]} 5. Bg2 {[%emt 0:00:06]} O-O {[%emt 0:00:21]} 6. O-O {[%emt 0:00:14]} dxc4 {[%emt 0:00:13]} 7. Qc2 {[%emt 0:00:04]} a6 {[%emt 0:00:06]} 8. a4 {[%emt 0:00:06]} Bd7 {[%emt 0:00:04]} 9. Qxc4 {[%emt 0:00:30]} Bc6 {[%emt 0:00:20]} 10. Bf4 {[%emt 0:00:33]} Bd6 {[%emt 0:00:08] E05: Open Catalan: 5 Nf3 Be7.} 11. Qc1 {[%emt 0:00:36]} a5 {[%emt 0:01:27]} 12. Nc3 {[%emt 0:00:34]} Na6 {[%emt 0:00:48]} 13. Bg5 {[%emt 0:00:12][%cal Oe2e4]} Be7 {[%emt 0:10:22]} 14. Bxf6 {[%emt 0:01:31]} Bxf6 {[%emt 0:00:06]} 15. e4 {[%emt 0:00:18]} Nb4 {[%emt 0:18:38]} 16. Rd1 {[%emt 0:00:26] [#]} Qb8 $146 {[%emt 0:06:14]} ({Predecessor:} 16... Re8 17. h4 g6 18. h5 Qe7 19. Qf4 Rad8 20. Rac1 Bg7 21. h6 Bf8 22. Ne5 f6 {1-0 (49) Andreikin,D (2724)-Melkumyan,H (2649) Chess.com INT 2022}) 17. Qf4 {[%emt 0:07:04]} Rd8 {[%emt 0:01:58]} 18. Rd2 {[%emt 0:01:13]} Be8 {[%emt 0:03:08][%cal Oc7c5]} 19. e5 {[%emt 0:13:37]} Be7 {[%emt 0:01:10]} 20. Ng5 {[%emt 0:00:35]} h6 {[%emt 0:11:43]} 21. Nh3 {[%emt 0:00:42]} Ra6 {[%emt 0:06:33]} 22. Qe3 {[%emt 0:11:26]} Bc6 {[%emt 0:05:50]} 23. Nf4 {[%emt 0:00:59]} Bg5 {[%emt 0:06:33]} 24. h4 {[%emt 0:00:51]} Bxf4 {[%emt 0:00:19]} 25. Qxf4 {[%emt 0:00:04]} Bxg2 {[%emt 0:01:50]} 26. Kxg2 {[%emt 0:00:08]} Rd7 {[%emt 0:00:39]} 27. Ne4 {[%emt 0:06:16]} Rc6 {[%emt 0:01:27]} 28. Rad1 {[%emt 0:07:40] The position is equal.} Qd8 {[%emt 0:01:11]} 29. Qg4 {[%emt 0:08:06] [#] Nf6+ is the strong threat.} Kh8 {[%emt 0:01:10]} 30. Qe2 {[%emt 0:00:12]} Kg8 {[%emt 0:00:10] Weighted Error Value: White=0.06 (flawless) /Black=0.06 (flawless)} 1/2-1/2

[Event "CCC-GM 2022"]
[Site "Ballerup"]
[Date "2022.05.29"]
[Round "8.3"]
[White "Olsen, Filip Boe"]
[Black "Hacker, Jonas"]
[Result "1/2-1/2"]
[ECO "E04"]
[WhiteElo "2407"]
[BlackElo "2396"]
[Annotator "TA"]
[PlyCount "80"]
[EventDate "2022.05.25"]
[EventType "tourn"]
[EventCountry "DEN"]
[SourceTitle "playchess.com"]
[Source "ChessBase"]
[SourceQuality "1"]
[TimeControl "5400+30"]

{[%evp 11,80,17,28,8,22,25,23,15,29,11,20,10,29,29,17,17,26,35,28,15,15,15,15,15,15,0,0,-4,0,0,0,0,0,0,0,0,0,-7,-4,-4,-4,-4,0,0,0,-13,-13,-17,-18,-18,-18,-18,-22,-22,-15,-15,-15,-23,-23,-23,-23,-24,-24,-24,-24,-24,-24,-24,0,-24,0]} 1. d4 {[%emt 0:00:05]} Nf6 {[%emt 0:00:20]} 2. c4 {[%emt 0:00:06]} e6 {[%emt 0:00:09]} 3. Nf3 {[%emt 0:00:10]} d5 {[%emt 0:00:21]} 4. g3 {[%emt 0:00:07]} dxc4 {[%emt 0:00:12]} 5. Bg2 {[%emt 0:00:06]} a6 {[%emt 0:00:11]} 6. O-O {[%emt 0:00:07]} Nc6 {[%emt 0:00:25]} 7. Nbd2 {[%emt 0:00:06] E04: Open Catalan: 5 Nf3.} (7. e3 {feels hotter.} Bd7 8. Qe2 Bd6 9. Qxc4 O-O 10. Nc3) 7... Nxd4 {[%emt 0:03:09]} (7... b5 {seems wilder.} 8. Ne5 Nxe5 9. Bxa8 Qxd4 10. Ne4 Qa7) 8. Nxc4 {[%emt 0:00:11]} Nxf3+ {[%emt 0:01:46]} 9. Bxf3 {[%emt 0:00:03] White has an edge.} Qxd1 {[%emt 0:01:05]} 10. Rxd1 {[%emt 0:00:02]} Be7 {[%emt 0:06:05]} 11. Na5 {[%emt 0:00:19]} Bb4 {[%emt 0:05:10] [#]} 12. Nxb7 $146 {[%emt 0:04:53] [#] Hoping for Rd8+.} ({Predecessor:} 12. Bd2 Bxd2 13. Rxd2 Nd5 14. Rad1 O-O 15. a3 b6 16. Nc6 Re8 17. e4 Nf6 18. e5 {½-½ (53) Babychuk,V (2147)-Heide,E (2228) ICCF email 2018}) 12... Nd5 $1 {[%emt 0:00:53]} 13. a3 {[%emt 0:07:03]} Bxb7 {[%emt 0:00:53]} 14. axb4 {[%emt 0:00:15]} O-O-O {[%emt 0:00:38][%cal Be8c8,Bc8d7,Bd7e6][%mdl 32]} 15. Bxd5 {[%emt 0:17:25]} Rxd5 {[%emt 0:01:53]} 16. Rxd5 {[%emt 0:00:45]} exd5 $11 {[%emt 0:04:29][%mdl 4096] Endgame KRB-KRB} 17. Bf4 {[%emt 0:00:59]} Kd7 {[%emt 0:04:15]} 18. Rc1 {[%emt 0:04:42]} Bc6 {[%emt 0:01:18]} 19. Rc5 {[%emt 0:00:41]} Re8 {[%emt 0:01:28]} 20. Kf1 {[%emt 0:02:07]} Re4 {[%emt 0:03:56]} 21. Bd2 {[%emt 0:05:35]} Bb5 {[%emt 0:03:58]} 22. Rxd5+ {[%emt 0:05:05]} Ke6 {[%emt 0:00:57]} 23. Rc5 {[%emt 0:01:42]} Rxe2 {[%emt 0:10:55]} 24. Bc3 {[%emt 0:08:45][%cal Oc5b5] [#] aiming for Rxb5!} Re5+ {[%emt 0:09:00]} 25. Kg2 {[%emt 0:00:49]} Rxc5 {[%emt 0:00:09]} 26. bxc5 {[%emt 0:00:05] KB-KB} f6 {[%emt 0:00:23]} 27. Kf3 {[%emt 0:00:54]} Kd5 {[%emt 0:01:47]} 28. b4 {[%emt 0:00:11]} Kc4 {[%emt 0:03:16]} 29. Bd2 {[%emt 0:00:23]} Kd3 {[%emt 0:01:24]} 30. Bf4 {[%emt 0:03:25]} Bc6+ {[%emt 0:11:50]} 31. Kg4 {[%emt 0:00:22]} Bd7+ {[%emt 0:01:48]} 32. Kf3 {[%emt 0:05:03]} c6 {[%emt 0:06:28]} 33. Bc7 $1 {[%emt 0:00:38]} h5 {[%emt 0:01:28]} 34. Kg2 {[%emt 0:01:57]} Be6 {[%emt 0:02:30]} 35. f4 {[%emt 0:00:30]} Ke2 {[%emt 0:02:16]} 36. h4 {[%emt 0:00:17]} Bd5+ {[%emt 0:00:43]} 37. Kh2 {[%emt 0:00:07]} Kf3 {[%emt 0:01:12]} 38. Bd8 {[%emt 0:00:14]} Kg4 {[%emt 0:00:39]} 39. Bc7 {[%emt 0:00:44]} Kf3 {[%emt 0:00:54]} 40. Bd8 {[%emt 0:00:08]} Kg4 {[%emt 0:00:42] An interesting draw.  Weighted Error Value: White=0.03 (flawless) /Black=0.02 (flawless)} 1/2-1/2

[Event "CCC-GM 2022"]
[Site "Ballerup"]
[Date "2022.05.29"]
[Round "8.4"]
[White "Stefansson, Vignir Vatnar"]
[Black "Blomqvist, Erik"]
[Result "0-1"]
[ECO "A28"]
[WhiteElo "2496"]
[BlackElo "2523"]
[Annotator "TA"]
[PlyCount "54"]
[EventDate "2022.05.25"]
[EventType "tourn"]
[EventCountry "DEN"]
[SourceTitle "playchess.com"]
[Source "ChessBase"]
[SourceQuality "1"]
[TimeControl "5400+30"]

{[%evp 11,54,9,13,0,0,0,0,0,0,0,0,0,0,0,14,14,10,10,16,0,0,0,0,0,0,0,0,0,0,-15,-14,-24,-14,-10,-10,-22,-21,-37,-16,-11,0,-166,-169,-217,-204]} 1. c4 {[%emt 0:00:05]} e5 {[%emt 0:00:09]} 2. Nc3 {[%emt 0:00:06]} Nf6 {[%emt 0:00:31]} 3. Nf3 {[%emt 0:00:10]} Nc6 {[%emt 0:00:39]} 4. e3 {[%emt 0:00:06]} Bb4 {[%emt 0:00:43]} 5. Qc2 {[%emt 0:00:07]} Bxc3 {[%emt 0:00:16]} 6. Qxc3 {[%emt 0:00:06]} Qe7 {[%emt 0:00:29]} 7. d4 {[%emt 0:03:30] now scores much better than the old 7.a3. A28: English Opening: Four Knights Variation.} Ne4 {[%emt 0:00:25]} 8. Qd3 {[%emt 0:00:41]} exd4 {[%emt 0:00:31]} 9. Nxd4 {[%emt 0:00:08] The position is equal.} Nc5 {[%emt 0:00:37] Pair of Knights!} 10. Qc3 {[%emt 0:02:37]} Nxd4 {[%emt 0:00:33]} 11. Qxd4 {[%emt 0:00:07]} O-O {[%emt 0:00:14]} 12. Be2 {[%emt 0:00:53]} a5 {[%emt 0:00:52]} 13. O-O {[%emt 0:01:57]} b6 {[%emt 0:04:45]} 14. Bf3 {[%emt 0:04:17]} Bb7 {[%emt 0:05:31]} 15. Bxb7 {[%emt 0:00:43]} Nxb7 {[%emt 0:00:05]} 16. b3 {[%emt 0:00:25]} Nc5 {[%emt 0:00:52]} 17. Bb2 {[%emt 0:00:40][%csl Gb2][%cal Rd4g7] [#]} f5 {[%emt 0:04:33]} 18. Rad1 {[%emt 0:01:10] [#]} Rae8 $146 {[%emt 0:02:14]} ({Predecessor:} 18... d6 19. Rfe1 Rae8 20. f3 Rf6 21. Qd2 Re6 22. Bc1 Qf7 23. Qc2 Re5 24. Rd4 Na6 {½-½ (51) Thurlow,K (2283)-Reichelt,H (2305) ICCF email 2021}) 19. Ba3 {[%emt 0:06:28] Threatens to win with Bxc5.} d6 {[%emt 0:00:50]} 20. g3 {[%emt 0:09:04]} h5 {[%emt 0:13:12]} 21. Qd5+ {[%emt 0:03:57]} Kh7 {[%emt 0:02:05]} 22. Bxc5 {[%emt 0:08:29]} bxc5 {[%emt 0:00:14]} 23. h4 {[%emt 0:00:05]} Qe4 {[%emt 0:03:30]} 24. Rfe1 {[%emt 0:02:00]} Re5 {[%emt 0:07:52]} 25. Qd2 {[%emt 0:00:20]} a4 {[%emt 0:07:28]} 26. Qe2 $2 {[%emt 0:03:23] [#]} (26. Rc1 $11) 26... f4 $1 $19 {[%emt 0:08:07][%cal Bf5f4,Bf4g3][%mdl 32] aiming for ...fxg3.} 27. Qd3 {[%emt 0:06:28]} (27. bxa4 {is a better defense.} fxg3 28. fxg3) 27... fxg3 {[%emt 0:03:14] Weighted Error Value: White=0.22 (precise) /Black=0.03 (flawless)} 0-1